Workbook

Sheet СТОИМОСТЬ РЕМОНТА
B1: ЛИСТ РАСЧЕТА СТОИМОСТИ РЕМОНТА КУХНИ
B3: Категория | C3: Наименование | D3: Количество | E3: Расчетная цена | F3: Фактическая цена | G3: Расчетная стоимость | H3: Фактическая стоимость
B4: Шкафы | C4: Напольные шкафы: модульные (количество в погонных метрах) | D4: 25 | E4: 5.00 ₽ | G4: =Данные[[#This Row],[Количество]]*Данные[[#This Row],[Расчетная цена]] -> 125 ₽ | H4: =Данные[[#This Row],[Количество]]*Данные[[#This Row],[Фактическая цена]] -> 0 ₽
B5: Шкафы | C5: Навесные шкафы: модульные (количество в погонных метрах) | D5: 25 | E5: 3.50 ₽ | G5: =Данные[[#This Row],[Количество]]*Данные[[#This Row],[Расчетная цена]] -> 88 ₽ | H5: =Данные[[#This Row],[Количество]]*Данные[[#This Row],[Фактическая цена]] -> 0 ₽
B6: Уборка | C6: Посудомоечная машина: стандартная | D6: 1 | E6: 250.00 ₽ | G6: =Данные[[#This Row],[Количество]]*Данные[[#This Row],[Расчетная цена]] -> 250 ₽ | H6: =Данные[[#This Row],[Количество]]*Данные[[#This Row],[Фактическая цена]] -> 0 ₽
B7: Уборка | C7: Измельчитель пищевых отходов: стандартный | D7: 1 | E7: 175.00 ₽ | G7: =Данные[[#This Row],[Количество]]*Данные[[#This Row],[Расчетная цена]] -> 175 ₽ | H7: =Данные[[#This Row],[Количество]]*Данные[[#This Row],[Фактическая цена]] -> 0 ₽
B8: Приготовление пищи | C8: Кухонная плита: отдельно стоящая | D8: 1 | E8: 375.00 ₽ | G8: =Данные[[#This Row],[Количество]]*Данные[[#This Row],[Расчетная цена]] -> 375 ₽ | H8: =Данные[[#This Row],[Количество]]*Данные[[#This Row],[Фактическая цена]] -> 0 ₽
B9: Приготовление пищи | C9: Микроволновая печь: стандартная | D9: 1 | E9: 300.00 ₽ | G9: =Данные[[#This Row],[Количество]]*Данные[[#This Row],[Расчетная цена]] -> 300 ₽ | H9: =Данные[[#This Row],[Количество]]*Данные[[#This Row],[Фактическая цена]] -> 0 ₽
B10: Рабочие поверхности | C10: Сплошная столешница (количество в погонных метрах) | D10: 23 | E10: 10.00 ₽ | G10: =Данные[[#This Row],[Количество]]*Данные[[#This Row],[Расчетная цена]] -> 230 ₽ | H10: =Данные[[#This Row],[Количество]]*Данные[[#This Row],[Фактическая цена]] -> 0 ₽
B11: Двери | C11: Межкомнатная: фанерный лист | D11: 1 | E11: 65.00 ₽ | G11: =Данные[[#This Row],[Количество]]*Данные[[#This Row],[Расчетная цена]] -> 65 ₽ | H11: =Данные[[#This Row],[Количество]]*Данные[[#This Row],[Фактическая цена]] -> 0 ₽
B12: Дополнительные товары | C12: Оборудование: водонагреватель проточный | D12: 1 | E12: 120.00 ₽ | G12: =Данные[[#This Row],[Количество]]*Данные[[#This Row],[Расчетная цена]] -> 120 ₽ | H12: =Данные[[#This Row],[Количество]]*Данные[[#This Row],[Фактическая цена]] -> 0 ₽
B13: Дополнительные товары | C13: Оборудование: дозатор мыла | D13: 1 | E13: 40.00 ₽ | G13: =Данные[[#This Row],[Количество]]*Данные[[#This Row],[Расчетная цена]] -> 40 ₽ | H13: =Данные[[#This Row],[Количество]]*Данные[[#This Row],[Фактическая цена]] -> 0 ₽
B14: Краны | C14: Кран: однорычажный, стандартный | D14: 1 | E14: 130.00 ₽ | G14: =Данные[[#This Row],[Количество]]*Данные[[#This Row],[Расчетная цена]] -> 130 ₽ | H14: =Данные[[#This Row],[Количество]]*Данные[[#This Row],[Фактическая цена]] -> 0 ₽
B15: Покрытие пола | C15: Ламинат (количество в квадратных метрах) | D15: 165 | E15: 3.50 ₽ | G15: =Данные[[#This Row],[Количество]]*Данные[[#This Row],[Расчетная цена]] -> 578 ₽ | H15: =Данные[[#This Row],[Количество]]*Данные[[#This Row],[Фактическая цена]] -> 0 ₽
B16: Стирка | C16: Стиральная машина: стандартная | D16: 1 | E16: 500.00 ₽ | G16: =Данные[[#This Row],[Количество]]*Данные[[#This Row],[Расчетная цена]] -> 500 ₽ | H16: =Данные[[#This Row],[Количество]]*Данные[[#This Row],[Фактическая цена]] -> 0 ₽
B17: Стирка | C17: Сушильная машина: стандартная | D17: 1 | E17: 375.00 ₽ | G17: =Данные[[#This Row],[Количество]]*Данные[[#This Row],[Расчетная цена]] -> 375 ₽ | H17: =Данные[[#This Row],[Количество]]*Данные[[#This Row],[Фактическая цена]] -> 0 ₽
B18: Освещение | C18: Светильники: встраиваемые | D18: 4 | E18: 35.00 ₽ | G18: =Данные[[#This Row],[Количество]]*Данные[[#This Row],[Расчетная цена]] -> 140 ₽ | H18: =Данные[[#This Row],[Количество]]*Данные[[#This Row],[Фактическая цена]] -> 0 ₽
B19: Холодильники | C19: Холодильник: отдельный, элитный | D19: 1 | E19: 1,200.00 ₽ | G19: =Данные[[#This Row],[Количество]]*Данные[[#This Row],[Расчетная цена]] -> 1,200 ₽ | H19: =Данные[[#This Row],[Количество]]*Данные[[#This Row],[Фактическая цена]] -> 0 ₽
B20: Мойки | C20: Двойная из нержавеющей стали, элитная | D20: 1 | E20: 125.00 ₽ | G20: =Данные[[#This Row],[Количество]]*Данные[[#This Row],[Расчетная цена]] -> 125 ₽ | H20: =Данные[[#This Row],[Количество]]*Данные[[#This Row],[Фактическая цена]] -> 0 ₽
B21: Вытяжка | C21: Купольная: проточная | D21: 1 | E21: 180.00 ₽ | G21: =Данные[[#This Row],[Количество]]*Данные[[#This Row],[Расчетная цена]] -> 180 ₽ | H21: =Данные[[#This Row],[Количество]]*Данные[[#This Row],[Фактическая цена]] -> 0 ₽
B22: Стены | C22: Стеновая панель (количество в квадратных метрах) | D22: 70 | E22: 2.00 ₽ | G22: =Данные[[#This Row],[Количество]]*Данные[[#This Row],[Расчетная цена]] -> 140 ₽ | H22: =Данные[[#This Row],[Количество]]*Данные[[#This Row],[Фактическая цена]] -> 0 ₽
B23: Окна | C23: Раздвижные | D23: 2 | E23: 120.00 ₽ | G23: =Данные[[#This Row],[Количество]]*Данные[[#This Row],[Расчетная цена]] -> 240 ₽ | H23: =Данные[[#This Row],[Количество]]*Данные[[#This Row],[Фактическая цена]] -> 0 ₽
B24: Другое | G24: =Данные[[#This Row],[Количество]]*Данные[[#This Row],[Расчетная цена]] -> 0 ₽ | H24: =Данные[[#This Row],[Количество]]*Данные[[#This Row],[Фактическая цена]] -> 0 ₽
B25: Итог | E25: =SUBTOTAL(109,Данные[Расчетная цена]) -> 4,014.00 ₽ | F25: =SUBTOTAL(109,Данные[Фактическая цена]) -> 0.00 ₽ | G25: =SUBTOTAL(109,Данные[Расчетная стоимость]) -> 5,375.00 ₽ | H25: =SUBTOTAL(109,Данные[Фактическая стоимость]) -> 0.00 ₽
B26: Промежуточная сумма | G26: =SUBTOTAL(109,Данные[Расчетная стоимость]) -> 5,375.00 ₽ | H26: =SUBTOTAL(109,Данные[Фактическая стоимость]) -> 0.00 ₽
B27: Непредвиденные расходы — 30 % | G27: =G26*0.3 -> 1,612.50 ₽ | H27: =H26*0.3 -> 0.00 ₽
B28: Итого | G28: =SUM(G26:G27) -> 6,987.50 ₽ | H28: =SUM(H26:H27) -> 0.00 ₽
